bitfinex/quotes_ETHUSD_20240722
["timestamp","ask_amount","ask_price","bid_price","bid_amount"]
[1721644713029,0.06558404,3499.3,3498.8,2.85809]
[1721644713338,2.92330404,3499.3,3498.6,2.85825]
[1721644713553,2.92330404,3499.3,3498.8,2.8581]
[1721644714334,1.018,3499.0,3498.2,7.35]
[1721644714637,2.452,3498.9,3498.4,2.85844]
[1721644714834,5.37583619,3498.9,3498.4,2.85844]
[1721644715141,2.51778619,3498.9,3498.4,2.85844]
[1721644717509,2.51778619,3498.9,3498.5,2.85836]
[1721644718710,5.37582619,3498.9,3498.3,2.85847]
[1721644720033,2.51778619,3498.9,3498.4,2.85842]
[1721644720942,2.51778619,3498.9,3498.4,2.85838]
[1721644723343,5.37582619,3498.9,3498.4,2.85838]
[1721644723815,3.34116481,3498.9,3498.2,2.85854]
[1721644724164,2.4594,3498.6,3498.1,2.85868]
[1721644724549,0.06566228,3498.5,3498.1,2.85868]
[1721644725243,0.06566228,3498.5,3498.1,2.85862]
[1721644726103,0.06566228,3498.5,3498.1,5.71725]
[1721644726304,0.06566228,3498.5,3498.1,5.71727]
[1721644728146,0.06566228,3498.5,3498.1,3.87662]
[1721644728515,0.06566228,3498.5,3498.2,2.85861]
[1721644728712,2.4594,3498.6,3498.2,2.85861]
[1721644728919,0.06562532,3498.4,3498.2,2.85861]
[1721644729113,2.4594,3498.6,3498.2,2.85861]
[1721644729318,0.06556559,3498.3,3498.2,2.85861]
[1721644729829,2.4594,3498.6,3498.2,2.85861]
[1721644730043,0.06542437,3498.3,3498.2,2.85861]
[1721644730339,2.4594,3498.6,3498.2,2.85861]
[1721644730546,0.06542437,3498.3,3498.2,2.85861]
[1721644730750,2.4594,3498.6,3498.2,2.85861]
[1721644731251,0.06541662,3498.5,3498.2,2.85861]
[1721644731814,0.06541662,3498.5,3498.0,6.314646]
[1721644732011,2.92383662,3498.5,3498.0,0.597186]
[1721644732223,2.85853,3498.3,3498.0,0.597186]
[1721644732507,5.24539,3498.1,3498.0,0.597186]
[1721644732713,2.3867,3498.1,3498.0,0.597186]
[1721644732909,2.4519936,3498.1,3498.0,0.597186]
[1721644737168,0.0652936,3498.1,3498.0,3.455956]
[1721644737665,2.3177,3498.4,3498.1,2.85867]
[1721644738264,2.3177,3498.4,3498.0,0.597186]
[1721644738836,2.436,3498.8,3498.3,2.85853]
[1721644739035,0.529404,3498.7,3498.3,2.85853]
[1721644739231,5.29414,3498.8,3498.3,2.85853]
[1721644739440,5.29414,3498.8,3498.1,5.71726]
[1721644739858,5.29414,3498.8,3498.2,2.85856]
[1721644740245,2.436,3498.8,3498.4,2.85843]
[1721644740644,2.436,3498.8,3498.1,2.85866]
[1721644740958,2.436,3498.8,3498.3,2.8585]
[1721644741161,2.436,3498.8,3498.3,2.85847]
[1721644741336,0.06551899,3498.7,3498.3,2.85847]
[1721644741536,2.436,3498.8,3498.4,2.85843]
[1721644741975,0.06554723,3498.7,3498.4,2.85843]
[1721644742461,0.06552099,3498.6,3498.4,2.85843]
[1721644742881,2.436,3498.8,3498.4,2.85843]
[1721644743052,0.06532529,3498.5,3498.4,2.85843]
[1721644743253,2.436,3498.8,3498.4,2.85843]
[1721644743456,0.06533941,3498.5,3498.4,2.85843]
[1721644743642,2.436,3498.8,3498.4,2.85843]
[1721644743842,0.06542014,3498.7,3498.4,2.85843]
[1721644744043,1.45385894,3498.6,3498.4,2.85843]
[1721644744243,0.06533941,3498.5,3498.4,2.85843]
[1721644744469,2.436,3498.8,3498.4,2.85843]
[1721644744678,0.06533941,3498.5,3498.4,2.85843]
[1721644744975,2.436,3498.8,3498.4,2.85843]
[1721644745180,0.06533261,3498.5,3498.4,2.85843]
[1721644745342,0.06530984,3498.5,3498.2,2.85853]
[1721644745754,0.06526948,3498.4,3498.2,5.71707]
[1721644746003,0.06526948,3498.4,3498.3,2.85853]
[1721644746151,2.436,3498.8,3498.3,2.85853]
[1721644746356,0.06526948,3498.4,3498.3,2.85853]
[1721644746692,2.436,3498.8,3498.4,2.85844]
[1721644747769,6.48989703,3499.1,3498.5,2.85831]
[1721644747965,3.41341501,3499.0,3498.5,2.85831]
[1721644750152,3.41341501,3499.0,3498.3,8.18037]
[1721644750764,3.41341501,3499.0,3498.4,2.85842]
[1721644750993,3.41341501,3499.0,3498.5,2.85836]
[1721644751167,0.55545501,3499.0,3498.5,2.8583]
[1721644751353,0.55545501,3499.0,3498.6,2.85828]
[1721644751753,0.55545501,3499.0,3498.4,2.85837]
[1721644751954,5.29149,3499.1,3498.5,2.85835]
[1721644752681,5.29149,3499.1,3498.6,2.85828]
[1721644752878,2.4336,3499.1,3498.6,2.85828]
[1721644753092,5.29152,3499.1,3498.6,2.85828]
[1721644755400,2.85805,3498.9,3498.4,2.85844]
[1721644756319,0.06501046,3498.8,3498.4,2.85844]
[1721644756823,0.06501046,3498.8,3498.3,2.85847]
[1721644756981,0.06501046,3498.8,3498.1,3.87664]
[1721644757369,0.06501046,3498.8,3498.4,2.85843]
[1721644758423,0.06501046,3498.8,3498.1,3.87664]
[1721644758424,0.06501046,3498.8,3498.3,2.85853]
[1721644758879,0.06501046,3498.8,3498.4,2.85844]
[1721644759903,0.06501046,3498.8,3498.2,2.85853]
[1721644760217,0.06501046,3498.8,3498.3,2.85848]
[1721644762732,2.92317046,3498.8,3498.2,2.85861]
[1721644762915,2.85826,3498.7,3498.2,2.85859]
[1721644763290,0.06495368,3498.6,3498.2,2.85859]
[1721644763989,6.91454703,3498.9,3498.2,2.85859]
[1721644763990,2.85813,3498.8,3498.2,2.85859]
[1721644764218,0.06498311,3498.7,3498.2,2.85859]
[1721644764497,2.40158311,3498.7,3498.2,2.85859]
[1721644765416,2.85839,3498.5,3497.8,10.20891]
[1721644765742,2.85839,3498.5,3497.9,2.85881]
[1721644765743,0.06482813,3498.4,3497.9,2.85881]
[1721644766142,0.06482813,3498.4,3498.0,2.85876]
[1721644768333,8.05308,3498.7,3498.0,2.85876]
[1721644768643,2.8583,3498.6,3498.0,2.85876]
[1721644768797,0.06486517,3498.5,3498.0,2.85876]
[1721644769630,0.06486517,3498.5,3498.0,2.85871]
[1721644771309,2.3347,3498.4,3498.0,2.85871]
[1721644771512,2.85866,3498.2,3497.6,6.456226]
[1721644771757,2.85866,3498.2,3497.6,2.85904]
[1721644772036,0.06469583,3498.1,3497.6,2.85904]
[1721644772201,0.06469583,3498.1,3497.7,0.99395757]
[1721644772536,0.06469583,3498.1,3497.6,2.85904]
[1721644775350,0.06469583,3498.1,3497.4,5.724116]
[1721644775351,2.335,3498.0,3497.4,3.456386]
[1721644775551,5.19378,3498.0,3497.5,5.4849999]
[1721644775763,0.06407266,3497.9,3497.6,0.99399996]
[1721644775957,0.06407266,3497.9,3497.5,3.0]
[1721644776274,5.19378,3498.0,3497.5,3.0]
[1721644776431,0.06407266,3497.9,3497.5,3.0]
[1721644777157,0.06407266,3497.9,3497.5,5.85918]
[1721644781152,0.06407266,3497.9,3497.5,2.85918]
[1721644783867,0.06407266,3497.9,3497.3,3.87729]
[1721644784030,2.3175,3497.6,3497.2,2.85942]
[1721644784235,0.06446224,3497.5,3497.2,2.85942]
[1721644784468,2.3175,3497.6,3497.0,6.73707]
[1721644784621,2.3175,3497.6,3497.1,3.0]
[1721644784940,2.3175,3497.6,3497.1,5.8595]
[1721644785728,2.3175,3497.6,3497.2,2.85941]
[1721644786464,5.1766,3497.6,3497.0,3.87751]
[1721644786621,0.06387631,3497.5,3497.0,8.0066626]
[1721644787136,0.06387631,3497.5,3497.1,2.8595]
[1721644788859,0.06387631,3497.5,3497.0,5.1472026]
[1721644793020,0.06387631,3497.5,3497.0,4.1292026]
[1721644793668,2.92308631,3497.5,3497.0,1.2696226]
[1721644793969,2.92308631,3497.5,3496.9,2.85966]
[1721644796067,2.92308631,3497.5,3496.8,2.85974]
[1721644796068,5.31117,3497.4,3496.8,2.85974]
[1721644796254,0.06376126,3497.3,3496.8,2.85974]
[1721644796451,2.92312126,3497.3,3496.8,2.85974]
[1721644799570,2.92312126,3497.3,3496.6,3.87786]
[1721644800671,2.92312126,3497.3,3496.7,2.85979]
[1721644802693,2.3167,3497.2,3496.5,2.85995]
[1721644802972,2.3167,3496.9,3496.3,5.86013]
[1721644803173,2.3167,3496.9,3496.3,5.8601]
[1721644803372,2.2729,3496.7,3496.3,2.86009]
[1721644803878,0.06396157,3496.6,3496.3,2.86009]
[1721644804946,0.06396157,3496.6,3496.3,5.72021]
[1721644805270,2.2729,3496.7,3496.3,6.394031]
[1721644805432,0.06417895,3496.6,3496.4,2.86007]
[1721644805758,2.2729,3496.7,3496.4,2.86007]
[1721644806135,0.06414172,3496.6,3496.4,2.86007]
[1721644806535,2.85953,3497.1,3496.4,2.86007]
[1721644806536,2.3564,3497.0,3496.5,2.85999]
[1721644806955,0.06428337,3496.9,3496.5,2.85999]
[1721644807965,0.06428337,3496.9,3496.4,1.018]
[1721644808652,2.92396337,3496.9,3496.3,3.533901]
[1721644808851,2.3351,3496.8,3496.3,2.86008]
[1721644809182,0.06411437,3496.7,3496.3,2.86008]
[1721644809429,0.06411437,3496.7,3496.1,2.86028]
[1721644809430,2.92395437,3496.7,3496.1,2.86028]
[1721644809581,2.85984,3496.7,3496.1,5.72054]
[1721644809783,2.85984,3496.7,3496.1,2.86026]
[1721644809784,0.06340857,3496.6,3496.1,2.86026]
[1721644810889,0.06340857,3496.6,3496.1,5.72052]
[1721644811268,0.06340857,3496.6,3496.1,2.86026]
[1721644811869,2.4078,3496.5,3496.1,2.86026]
[1721644812100,0.06406438,3496.4,3496.1,2.86026]
[1721644813008,0.06406438,3496.4,3496.1,2.86025]
[1721644813206,0.06406438,3496.4,3496.1,0.52691263]
[1721644813594,0.06406438,3496.4,3496.1,3.38718263]
[1721644814471,0.06406438,3496.4,3496.2,2.86024]
[1721644815309,0.06406438,3496.4,3496.1,0.52691263]
[1721644815689,0.06406438,3496.4,3496.1,3.38722263]
[1721644817735,2.86034,3496.1,3495.2,1.018]
[1721644818021,2.4432,3496.0,3495.2,1.018]
[1721644818228,2.86052,3495.9,3495.3,2.86093]
[1721644818586,0.06363914,3495.8,3495.3,2.86093]
[1721644818807,0.06363914,3495.8,3495.3,3.534931]
[1721644819330,2.92421914,3495.8,3495.3,0.674001]
[1721644819633,0.06363914,3495.8,3495.3,3.534961]
[1721644819830,0.06363914,3495.8,3495.3,6.395881]
[1721644820194,0.06363914,3495.8,3495.4,2.86089]
[1721644821740,2.4432,3496.0,3495.4,2.86089]
[1721644821944,0.06365075,3495.7,3495.4,2.86089]
[1721644822109,2.4432,3496.0,3495.4,3.6022711]
[1721644822313,0.06361032,3495.6,3495.4,3.6022711]
[1721644822513,2.4432,3496.0,3495.4,3.6022711]
[1721644822726,0.06374575,3495.9,3495.4,3.6022711]
[1721644824513,2.92424575,3495.9,3495.4,3.6022711]
[1721644826556,2.92424575,3495.9,3495.4,0.7413811]
[1721644826857,2.92424575,3495.9,3495.3,2.86098]
[1721644827722,2.92424575,3495.9,3495.3,5.7219]
[1721644827912,2.92424575,3495.9,3495.3,2.86092]
[1721644829456,0.06374575,3495.9,3495.3,2.86092]
[1721644829662,0.06374575,3495.9,3495.5,6.73957]
[1721644829864,2.86034,3496.1,3495.5,4.802517]
[1721644830099,0.06295576,3496.0,3495.5,3.87877]
[1721644830297,0.06295576,3496.0,3495.5,3.87876]
[1721644830674,0.06295576,3496.0,3495.6,2.86069]
[1721644830999,2.3787,3496.2,3495.6,2.86069]
[1721644831000,5.23901,3496.2,3495.6,2.86069]
[1721644831203,0.06279752,3495.9,3495.6,2.86069]
[1721644831362,5.23901,3496.2,3495.6,2.86069]
[1721644831567,0.06276763,3495.8,3495.5,1.018]
[1721644831901,5.23901,3496.2,3495.5,1.018]
[1721644831902,0.09116433,3495.7,3495.5,1.018]
[1721644832107,2.86041,3496.0,3495.5,1.018]
[1721644832304,2.86041,3496.0,3495.4,2.86083]
[1721644832468,0.09122216,3495.9,3495.4,2.86083]
[1721644834189,2.4286,3495.8,3495.4,2.86083]
[1721644834503,0.09061449,3495.7,3495.1,5.1992]
[1721644834665,0.09061449,3495.7,3495.3,2.86097]
[1721644834871,2.4286,3495.8,3495.3,2.86092]
[1721644835104,0.09062834,3495.7,3495.1,2.86111]
[1721644835291,0.09062834,3495.7,3495.2,2.86101]
[1721644835667,0.09062834,3495.7,3495.3,5.72188]
[1721644835879,2.4286,3495.8,3495.3,2.86091]
[1721644836102,0.09163629,3495.7,3495.3,2.86091]
[1721644836303,2.4286,3495.8,3495.3,2.86091]
[1721644836804,0.09151167,3495.7,3495.3,2.86091]
[1721644837200,2.4286,3495.8,3495.3,2.86091]
[1721644837412,0.09146358,3495.6,3495.3,2.86091]
[1721644837572,0.09151704,3495.7,3495.3,2.86091]
[1721644837771,2.4286,3495.8,3495.3,2.86091]
[1721644837772,0.09143782,3495.5,3495.3,2.86091]
[1721644837995,2.4286,3495.8,3495.3,2.86091]
[1721644838206,0.0914567,3495.4,3495.3,2.86091]
[1721644838507,0.09132684,3495.4,3495.3,2.86091]
[1721644838825,2.4286,3495.8,3495.3,2.86091]
[1721644838997,0.09144928,3495.4,3495.3,2.86091]
[1721644839198,2.4286,3495.8,3495.3,2.86091]
[1721644839551,5.28922,3495.8,3495.2,2.86106]
[1721644839703,0.09158664,3495.7,3495.2,2.86106]
[1721644839906,2.4286,3495.8,3495.2,2.86106]
[1721644840117,0.09158071,3495.7,3495.2,2.86106]
[1721644840316,0.09158071,3495.7,3494.9,6.87928]
[1721644840317,2.3509,3495.5,3494.9,6.87928]
[1721644840648,0.09147572,3495.4,3494.9,6.87928]
[1721644841206,0.09147572,3495.4,3495.1,2.86112]
[1721644841754,0.09147572,3495.4,3494.9,6.87928]
[1721644841901,0.09147572,3495.4,3494.9,2.86128]
[1721644843207,2.3451,3495.0,3494.7,7.35]
[1721644843755,0.09018889,3494.9,3494.6,3.87954]
[1721644844619,0.09018889,3494.9,3494.6,3.87951]
[1721644845035,0.09018889,3494.9,3494.8,2.86139]
[1721644845269,0.09018889,3494.9,3494.6,3.87948]
[1721644845561,2.3451,3495.0,3494.7,2.86146]
[1721644846048,2.3451,3495.0,3494.8,2.86138]
[1721644846347,0.09019336,3494.9,3494.6,6.74096]
[1721644846503,0.09019336,3494.9,3494.6,3.87948]
[1721644846705,0.09019336,3494.9,3494.8,2.86139]
[1721644848511,0.09019336,3494.9,3494.6,6.74096]
[1721644848709,0.09019336,3494.9,3494.6,3.87948]
[1721644848911,0.09019336,3494.9,3494.8,2.86139]
[1721644849255,0.09019336,3494.9,3494.6,6.74096]
[1721644849550,0.09019336,3494.9,3494.7,2.86146]
[1721644856158,0.09019336,3494.9,3494.7,2.86141]
[1721644856366,0.09019336,3494.9,3494.8,5.72278]
[1721644856875,2.4824,3495.6,3495.1,2.86111]
[1721644857206,0.09107667,3495.5,3495.1,2.86111]
[1721644857565,2.4824,3495.6,3495.1,2.86111]
[1721644858161,5.34316,3495.6,3495.1,2.86111]
[1721644858513,0.72720373,3495.5,3495.1,2.86111]
[1721644858875,0.72720373,3495.5,3495.1,5.72217]
[1721644859072,0.72720373,3495.5,3495.1,2.86108]
[1721644859284,0.72720373,3495.5,3495.1,5.72217]
[1721644859516,0.09108773,3495.5,3495.1,5.72217]
[1721644859709,0.09108773,3495.5,3495.2,2.86105]
[1721644860293,0.09108773,3495.5,3495.1,2.86114]
[1721644861096,0.09108773,3495.5,3494.9,2.86124]
[1721644861290,2.3569,3495.4,3494.9,2.86124]
[1721644861490,0.09098248,3495.3,3495.1,2.86114]
[1721644863797,0.09098248,3495.3,3495.2,2.86106]
[1721644863999,0.09098248,3495.3,3495.2,3.147166]
[1721644864202,2.283,3495.6,3495.3,2.86097]
[1721644865127,2.283,3495.6,3495.1,2.86109]
[1721644865332,2.283,3495.6,3494.9,2.86127]
[1721644865333,2.283,3495.6,3494.9,2.86125]
[1721644865635,2.283,3495.6,3495.1,2.86108]
[1721644865793,3.185219,3495.6,3495.1,2.86108]
[1721644865993,3.185219,3495.6,3495.1,5.72216]
[1721644866341,3.185219,3495.6,3494.4,10.947186]
[1721644866342,2.3399,3495.5,3495.0,2.86122]
[1721644866491,5.20072,3495.5,3495.0,2.86122]
[1721644867716,2.3399,3495.5,3495.0,5.72238]
[1721644867923,2.3399,3495.5,3495.0,5.72232]
[1721644867924,3.3380509,3495.5,3495.0,5.72232]
[1721644868239,3.3380509,3495.5,3495.0,5.72233]
[1721644868386,3.3380509,3495.5,3495.0,2.86116]
[1721644869093,6.1988709,3495.5,3495.0,2.86116]
[1721644871136,2.3691,3495.4,3495.0,2.86116]
[1721644871442,2.3691,3495.4,3494.4,13.228386]
[1721644871731,2.86095,3495.4,3494.8,2.86137]
[1721644871893,2.2873,3495.3,3494.8,2.86133]
[1721644872096,2.2873,3495.3,3494.9,2.86131]
[1721644874210,2.2873,3495.3,3494.9,2.86124]
[1721644875521,2.2873,3495.3,3495.0,2.86122]
[1721644875721,2.2873,3495.3,3494.9,2.86124]
[1721644876146,2.2873,3495.3,3494.9,2.86125]
[1721644876455,0.09012831,3495.2,3494.9,2.86125]
[1721644876747,2.2873,3495.3,3494.9,2.86125]
[1721644876950,0.0897893,3495.2,3495.1,2.8611]
[1721644877168,2.2873,3495.3,3495.1,2.8611]
[1721644877351,0.09011089,3495.2,3495.1,2.8611]
[1721644877653,2.2873,3495.3,3495.1,2.8611]
[1721644877811,0.09005953,3495.2,3494.9,2.86123]
[1721644878012,0.09005953,3495.2,3495.0,2.86121]
[1721644878244,2.2873,3495.3,3495.0,2.86121]
[1721644878446,0.0900164,3495.1,3495.0,2.86121]
[1721644878650,2.2873,3495.3,3495.0,2.86121]
[1721644878851,0.08996504,3495.1,3495.0,2.86121]
[1721644879054,2.2873,3495.3,3495.0,2.86121]
[1721644879217,0.09010185,3495.1,3495.0,2.86121]
[1721644879417,2.2873,3495.3,3495.0,2.86121]
[1721644879617,0.08995477,3495.1,3495.0,2.86121]
[1721644879845,2.2873,3495.3,3495.0,2.86121]
[1721644880039,0.09009335,3495.1,3495.0,2.86121]
[1721644880245,2.2873,3495.3,3495.0,2.86121]
[1721644880418,0.09003149,3495.1,3495.0,2.86121]
[1721644880632,2.2873,3495.3,3495.0,2.86121]
[1721644881189,0.0899944,3495.2,3495.0,2.86121]
[1721644881462,0.0899944,3495.2,3495.1,2.86114]
[1721644881680,2.3433,3495.5,3495.1,2.86114]
[1721644881832,0.0899944,3495.2,3495.1,2.86114]
[1721644882032,2.3433,3495.5,3495.1,2.86114]
[1721644882229,0.0899944,3495.2,3495.1,2.86114]
[1721644882430,2.3433,3495.5,3495.2,2.861]
[1721644883055,2.3433,3495.5,3495.1,2.86113]
[1721644883270,1.018,3495.4,3494.8,2.86135]
[1721644883561,2.4198,3495.3,3494.8,2.86133]
[1721644884384,5.2808,3495.3,3494.8,2.86133]
[1721644884529,2.4198,3495.3,3494.8,2.86133]
[1721644884840,3.60574846,3495.3,3494.8,5.72266]
[1721644885170,3.60574846,3495.3,3494.8,2.86133]
[1721644886365,3.60574846,3495.3,3494.8,5.72265]
[1721644886564,2.4198,3495.3,3494.8,5.72265]
[1721644888177,2.4198,3495.3,3494.8,5.72266]
[1721644888474,2.4198,3495.3,3494.9,2.8613]
[1721644891251,0.08706004,3495.2,3494.9,2.8613]
[1721644891643,2.4198,3495.3,3494.7,2.8614]
[1721644891884,0.08712455,3495.1,3494.6,2.86151]
[1721644892084,0.08716417,3495.2,3494.7,0.99486128]
[1721644892283,0.08716417,3495.2,3494.6,2.86151]
[1721644892487,0.08716417,3495.2,3494.7,0.99485752]
[1721644892649,0.08716417,3495.2,3494.8,2.86135]
[1721644893049,2.4198,3495.3,3494.8,2.86135]
[1721644893264,0.08707641,3495.1,3494.8,2.86135]
[1721644893595,0.08688976,3495.0,3494.8,2.86135]
[1721644894094,2.4198,3495.3,3494.8,2.86135]
[1721644894306,0.08686397,3494.9,3494.8,2.86135]
[1721644894467,2.4198,3495.3,3494.8,2.86135]
[1721644894683,0.08695691,3494.9,3494.8,2.86135]
[1721644895163,2.4198,3495.3,3494.8,2.86135]
[1721644895366,0.08707581,3495.2,3494.8,2.86135]
[1721644895567,2.4198,3495.3,3494.8,2.86135]
[1721644895786,0.08708966,3495.2,3494.8,2.86135]
[1721644895953,5.28079,3495.3,3494.8,2.86135]
[1721644896157,0.08708966,3495.2,3494.8,2.86135]
[1721644896498,5.28079,3495.3,3494.8,2.86135]
[1721644896698,0.08692536,3495.1,3494.8,2.86135]
[1721644896992,0.08688573,3495.0,3494.6,2.86151]
[1721644897356,0.08688573,3495.0,3494.3,0.597186]
[1721644897357,2.4016,3494.9,3494.3,0.597186]
[1721644897703,0.08673807,3494.8,3494.1,1.45104146]
[1721644897906,0.08673807,3494.8,3494.2,2.4874992]
[1721644898188,0.08673807,3494.8,3494.3,0.99499968]
[1721644898351,0.08673807,3494.8,3494.2,2.8618]
[1721644898567,0.08673807,3494.8,3494.3,3.85673792]
[1721644898863,0.08673807,3494.8,3494.3,2.86176]
[1721644899510,2.94812807,3494.8,3494.3,2.86176]
[1721644900708,3.99085758,3494.8,3494.3,2.86176]
[1721644901099,0.08673807,3494.8,3494.3,2.86176]
[1721644903617,0.08673807,3494.8,3494.5,2.86163]
[1721644903997,0.08673807,3494.8,3494.4,2.86171]
[1721644906187,0.08673807,3494.8,3494.3,2.86176]
[1721644906787,0.08673807,3494.8,3494.4,2.86171]
[1721644907838,0.08673807,3494.8,3494.2,2.86181]
[1721644908329,2.94817807,3494.8,3494.2,2.86181]
[1721644908686,2.94817807,3494.8,3493.8,5.86215]
[1721644908687,3.87979,3494.4,3493.8,5.86215]
[1721644908893,2.3357,3494.3,3493.8,2.86215]
[1721644909122,2.42250252,3494.3,3493.9,2.86213]
[1721644912812,2.42250252,3494.3,3493.5,3.4842]
[1721644913018,0.08680252,3494.3,3494.2,2.86188]
[1721644913340,0.08680252,3494.3,3494.0,2.86202]
[1721644913341,0.08680252,3494.3,3494.0,5.72399]
[1721644913518,5.24251,3494.7,3494.0,2.86197]
[1721644913715,0.08670121,3494.2,3494.0,2.86197]
[1721644913916,5.24251,3494.7,3494.1,2.86191]
[1721644914155,6.154696,3494.7,3494.1,2.86191]
[1721644915444,2.86157,3494.6,3494.1,2.86191]
[1721644915970,2.3808,3494.9,3494.3,2.86177]
[1721644916256,2.3808,3495.2,3494.7,2.86146]
[1721644916472,2.3808,3495.2,3494.8,2.86135]
[1721644916953,5.28706,3495.5,3494.9,2.86129]
[1721644917166,3.4626147,3495.5,3495.0,2.86122]
[1721644917345,3.4626147,3495.5,3495.0,2.86116]
[1721644918371,6.3234747,3495.5,3494.8,2.86135]
[1721644918595,6.3234747,3495.5,3494.6,2.86151]
[1721644918596,6.3234747,3495.5,3494.9,2.8613]
[1721644918739,2.86103,3495.3,3494.7,2.86142]
[1721644918938,2.2807,3495.2,3494.7,2.86142]
[1721644920584,5.14177,3495.2,3494.7,2.86142]
[1721644921172,2.2807,3495.2,3494.7,2.86142]
[1721644921385,0.48733513,3495.1,3494.7,2.86142]
[1721644922356,2.86144,3494.8,3493.9,7.35]
[1721644922563,0.0832396,3494.7,3494.2,2.86182]
[1721644924003,2.4967,3494.6,3494.1,2.86196]
[1721644924170,5.35826,3494.6,3494.0,2.86202]
[1721644924496,0.08374738,3494.5,3494.0,2.86202]
[1721644925650,0.08374738,3494.5,3494.1,2.86196]
[1721644925855,0.08374738,3494.5,3494.1,2.86193]
[1721644926091,5.19234,3494.9,3494.1,2.86193]
[1721644926291,6.31465718,3494.9,3494.3,2.86175]
[1721644926497,0.08316942,3494.4,3494.1,2.86192]
[1721644926697,5.19234,3494.9,3494.3,2.86175]
[1721644930599,5.33434,3494.9,3494.3,2.86175]
[1721644932077,2.473,3494.9,3494.6,1.018]
[1721644932261,0.142,3494.9,3494.8,6.74078]
[1721644934217,0.142,3494.9,3494.8,2.86139]
[1721644936393,0.22532968,3494.9,3494.8,2.86139]
[1721644938634,0.22532968,3494.9,3494.8,5.72278]
[1721644940410,0.22532968,3494.9,3494.8,6.74078]
[1721644940604,0.22532968,3494.9,3494.8,7.414858]
[1721644941213,0.22532968,3494.9,3494.8,12.705748]
[1721644941413,0.142,3494.9,3494.8,15.567138]
[1721644941994,0.142,3494.9,3494.8,12.705748]
[1721644953282,0.142,3494.9,3494.8,15.567138]
[1721644953501,7.42,3495.9,3495.8,5.72114]
[1721644953632,2.2532,3496.5,3496.3,2.86013]
[1721644953838,0.08444365,3496.4,3496.3,2.86013]
[1721644954275,0.08444365,3496.4,3496.1,2.8603]
[1721644954599,0.08444365,3496.4,3496.2,2.86024]
[1721644956941,0.08444365,3496.4,3495.2,2.86102]
[1721644956942,0.31820802,3496.4,3495.1,9.6733]
[1721644957131,0.31820802,3496.4,3495.8,2.86056]
[1721644957132,2.4632,3496.3,3495.8,2.86056]
[1721644957356,2.4632,3496.3,3495.6,1.018]
[1721644957566,0.08433349,3496.2,3495.9,2.86049]
[1721644960073,0.08433349,3496.2,3495.7,2.86063]
[1721644960505,0.08433349,3496.2,3495.8,2.86056]
[1721644960706,0.91110884,3496.2,3495.8,2.86056]
[1721644961120,0.91110884,3496.2,3495.6,2.86066]
[1721644961268,0.91110884,3496.2,3495.7,3.87858]
[1721644961467,0.82677535,3496.2,3495.8,2.86051]
[1721644961670,0.08431476,3496.1,3495.7,3.87858]
[1721644961876,0.08431476,3496.1,3495.7,1.018]
[1721644962102,2.3321,3496.0,3495.7,1.018]
[1721644962469,0.08424939,3495.9,3495.7,1.018]
[1721644964388,2.3882,3495.8,3495.3,4.018]
[1721644964588,0.08342213,3495.7,3495.5,2.86081]
[1721644965142,2.3882,3495.8,3495.5,2.86081]
[1721644965303,2.3882,3495.8,3495.5,3.87881]
[1721644965494,0.08343598,3495.7,3495.5,3.87881]
[1721644965899,2.3882,3495.8,3495.5,3.87881]
[1721644966533,0.08329749,3495.7,3495.6,2.86071]
[1721644966937,2.3882,3495.8,3495.6,2.86067]
[1721644967232,0.08331134,3495.7,3495.6,2.86067]
[1721644967408,2.3882,3495.8,3495.6,2.86067]
[1721644967629,0.08313441,3495.7,3495.6,2.86067]
[1721644967821,2.3882,3495.8,3495.6,2.86067]
[1721644968022,0.08313351,3495.7,3495.6,2.86067]
[1721644968245,2.3882,3495.8,3495.6,2.86067]
[1721644968420,0.08314737,3495.7,3495.6,2.86067]
[1721644968753,2.3882,3495.8,3495.6,2.86067]
[1721644969118,0.08316122,3495.7,3495.6,2.86067]
[1721644969673,2.3882,3495.8,3495.6,2.86067]
[1721644969956,2.3882,3495.8,3495.5,3.8788]
[1721644970141,0.08318892,3495.7,3495.5,3.8788]
[1721644970339,0.08318892,3495.7,3495.5,2.8608]
[1721644970520,2.3882,3495.8,3495.5,2.8608]
[1721644970720,0.083177,3495.6,3495.5,2.8608]
[1721644970949,2.3882,3495.8,3495.6,2.8607]
[1721644971560,0.08323047,3495.7,3495.6,2.8607]
[1721644971759,0.08323047,3495.7,3495.6,3.8787]
[1721644971958,2.3699,3496.2,3495.8,2.86057]
[1721644972128,0.523011,3496.1,3495.7,2.86059]
[1721644972330,0.60642094,3496.1,3495.7,2.86059]
[1721644972568,0.60642094,3496.1,3495.7,2.86058]
[1721644972769,0.08340994,3496.1,3495.8,2.86054]
[1721644973374,0.08340994,3496.1,3495.9,2.86046]
[1721644975388,0.08340994,3496.1,3496.0,6.73882]
[1721644975802,2.2517,3496.5,3496.2,2.86021]
[1721644976163,0.08350237,3496.4,3496.2,2.86021]
[1721644977350,0.08350237,3496.4,3496.2,2.86018]
[1721644979777,0.08350237,3496.4,3496.2,5.72036]
[1721644979943,0.08350237,3496.4,3496.2,2.86018]
[1721644980170,0.08350237,3496.4,3496.3,2.86016]
[1721644980684,0.08350237,3496.4,3496.3,6.394154]
[1721644980881,2.3659,3497.3,3496.7,2.85983]
[1721644981073,5.77525,3497.3,3496.8,2.85974]
[1721644981403,0.0833434,3497.2,3496.7,1.018]
[1721644981603,0.58585934,3497.1,3496.5,1.018]
[1721644981901,0.58585934,3497.1,3496.5,3.87793]
[1721644981902,0.08350808,3497.0,3496.5,3.87793]
[1721644982402,0.08350808,3497.0,3496.6,2.85985]
[1721644982565,0.08350808,3497.0,3496.7,2.85983]
[1721644983503,0.08350808,3497.0,3496.7,2.85977]
[1721644984276,0.08350808,3497.0,3496.8,2.85974]